[Event "Kadrioru MK Open B"]
[Site "Tallinn, Paul Keres Chess House, Estonia"]
[Date "2023.02.12"]
[Round "5.2"]
[White "Beniosev, Daniel"]
[Black "Leht, Karl Samuel"]
[Result "1/2-1/2"]
[TimeControl "60 minutes with 30 second increment from move 1"]
[WhiteElo "1464"]
[BlackElo "1150"]

1. e4 {

[%clk 01:00:40]

} {

[%emt 00:00:07]

} e5 {

[%clk 01:00:56]

} {

[%emt 00:00:05]

} 2. Nc3 {

[%clk 01:01:00]

} {

[%emt 00:00:10]

} Nc6 {

[%clk 01:01:11]

} {

[%emt 00:00:17]

} 3. Bc4 {

[%clk 01:01:24]

} {

[%emt 00:00:04]

} Nf6 {

[%clk 01:01:33]

} {

[%emt 00:00:10]

} 4. d3 {

[%clk 01:01:53]

} {

[%emt 00:00:01]

} h6 {

[%clk 01:01:41]

} {

[%emt 00:00:21]

} 5. f4 {

[%clk 01:02:19]

} {

[%emt 00:00:05]

} exf4 {

[%clk 01:01:19]

} {

[%emt 00:00:52]

} 6. Bxf4 {

[%clk 01:02:45]

} {

[%emt 00:00:04]

} Bc5 {

[%clk 01:01:13]

} {

[%emt 00:00:36]

} 7. Nf3 {

[%clk 01:02:17]

} {

[%emt 00:00:57]

} d6 {

[%clk 01:01:19]

} {

[%emt 00:00:25]

} 8. Qd2 {

[%clk 01:02:28]

} {

[%emt 00:00:18]

} Bg4 {

[%clk 01:00:51]

} {

[%emt 00:00:58]

} 9. O-O-O {

[%clk 01:02:45]

} {

[%emt 00:00:13]

} a6 {

[%clk 01:00:45]

} {

[%emt 00:00:37]

} 10. h3 {

[%clk 01:03:03]

} {

[%emt 00:00:11]

} Bxf3 {

[%clk 01:01:10]

} {

[%emt 00:00:05]

} 11. gxf3 {

[%clk 01:03:29]

} {

[%emt 00:00:05]

} Qd7 {

[%clk 01:01:15]

} {

[%emt 00:00:24]

} 12. Be3 {

[%clk 01:03:33]

} {

[%emt 00:00:26]

} Bd4 {

[%clk 00:57:07]

} {

[%emt 00:04:37]

} 13. Bxd4 {

[%clk 01:03:14]

} {

[%emt 00:00:49]

} Nxd4 {

[%clk 00:57:29]

} {

[%emt 00:00:08]

} 14. Qe3 {

[%clk 01:03:41]

} {

[%emt 00:00:04]

} Nc6 {

[%clk 00:57:22]

} {

[%emt 00:00:37]

} 15. Nd5 {

[%clk 01:03:36]

} {

[%emt 00:00:36]

} O-O-O {

[%clk 00:55:39]

} {

[%emt 00:02:12]

} 16. Nxf6 {

[%clk 01:02:28]

} {

[%emt 00:01:37]

} gxf6 {

[%clk 00:55:56]

} {

[%emt 00:00:13]

} 17. Qf4 {

[%clk 01:02:53]

} {

[%emt 00:00:05]

} Qe7 {

[%clk 00:55:41]

} {

[%emt 00:00:45]

} 18. Rhg1 {

[%clk 01:02:43]

} {

[%emt 00:00:41]

} Ne5 {

[%clk 00:55:32]

} {

[%emt 00:00:39]

} 19. Bb3 {

[%clk 01:03:01]

} {

[%emt 00:00:11]

} Ng6 {

[%clk 00:54:17]

} {

[%emt 00:01:46]

} 20. Qg4+ {

[%clk 01:02:02]

} {

[%emt 00:01:29]

} Qd7 {

[%clk 00:54:00]

} {

[%emt 00:00:48]

} 21. Qxd7+ {

[%clk 01:02:21]

} {

[%emt 00:00:10]

} Rxd7 {

[%clk 00:54:23]

} {

[%emt 00:00:07]

} 22. Bxf7 {

[%clk 01:02:47]

} {

[%emt 00:00:04]

} Rxf7 {

[%clk 00:54:26]

} {

[%emt 00:00:27]

} 23. Rxg6 {

[%clk 01:03:12]

} {

[%emt 00:00:04]

} Rff8 {

[%clk 00:54:29]

} {

[%emt 00:00:27]

} 24. Rdg1 {

[%clk 01:03:34]

} {

[%emt 00:00:08]

} f5 {

[%clk 00:44:18]

} {

[%emt 00:10:42]

} 25. Kd2 {

[%clk 01:03:24]

} {

[%emt 00:00:39]

} fxe4 {

[%clk 00:44:22]

} {

[%emt 00:00:25]

} 26. fxe4 {

[%clk 01:03:52]

} {

[%emt 00:00:03]

} Rf2+ {

[%clk 00:42:59]

} {

[%emt 00:01:53]

} 27. Kc3 {

[%clk 01:04:15]

} {

[%emt 00:00:07]

} Rh2 {

[%clk 00:42:57]

} {

[%emt 00:00:31]

} 28. R1g3 {

[%clk 01:03:31]

} {

[%emt 00:01:13]

} h5 {

[%clk 00:39:18]

} {

[%emt 00:04:11]

} 29. b4 {

[%clk 01:02:58]

} {

[%emt 00:01:03]

} h4 {

[%clk 00:39:19]

} {

[%emt 00:00:29]

} 30. Rf3 {

[%clk 01:03:22]

} {

[%emt 00:00:05]

} b6 {

[%clk 00:37:21]

} {

[%emt 00:02:28]

} 31. a3 {

[%clk 01:03:23]

} {

[%emt 00:00:28]

} Rh7 {

[%clk 00:37:32]

} {

[%emt 00:00:20]

} 32. Kb3 {

[%clk 01:03:37]

} {

[%emt 00:00:15]

} Kb7 {

[%clk 00:35:47]

} {

[%emt 00:02:15]

} 33. c4 {

[%clk 01:03:50]

} {

[%emt 00:00:17]

} Rh5 {

[%clk 00:32:39]

} {

[%emt 00:03:38]

} 34. a4 {

[%clk 01:04:09]

} {

[%emt 00:00:12]

} Rh1 {

[%clk 00:32:23]

} {

[%emt 00:00:46]

} 35. Rg2 {

[%clk 01:03:53]

} {

[%emt 00:00:47]

} Kc6 {

[%clk 00:31:29]

} {

[%emt 00:01:24]

} 36. b5+ {

[%clk 01:03:56]

} {

[%emt 00:00:27]

} axb5 {

[%clk 00:31:29]

} {

[%emt 00:00:30]

} 37. cxb5+ {

[%clk 01:04:00]

} {

[%emt 00:00:26]

} Kb7 {

[%clk 00:30:15]

} {

[%emt 00:01:43]

} 38. d4 {

[%clk 01:02:23]

} {

[%emt 00:02:07]

} Rb1+ {

[%clk 00:27:10]

} {

[%emt 00:03:36]

} 39. Rb2 {

[%emt 00:03:51]

} Re1 {

[%clk 00:26:10]

} {

[%emt 00:00:07]

} 40. Rc2 {

[%clk 00:59:36]

} {

[%emt 00:01:19]

} Rh7 {

[%clk 00:23:23]

} {

[%emt 00:03:17]

} 41. Rf4 {

[%clk 01:00:01]

} {

[%emt 00:00:05]

} Rb1+ {

[%clk 00:23:29]

} {

[%emt 00:00:21]

} 42. Rb2 {

[%clk 00:58:42]

} {

[%emt 00:01:52]

} Rh1 {

[%clk 00:23:35]

} {

[%emt 00:00:22]

} 43. Rf3 {

[%clk 00:58:53]

} {

[%emt 00:00:20]

} Re1 {

[%clk 00:23:41]

} {

[%emt 00:00:22]

} 1/2-1/2